[Event "NY Presidents Day GM-A 2024"]
[Site "New York"]
[Date "2024.02.18"]
[Round "5.5"]
[White "Kaliksteyn, Alexander"]
[Black "Mandizha, Farai"]
[Result "0-1"]
[ECO "A29"]
[WhiteElo "2363"]
[BlackElo "2367"]
[Annotator "TA"]
[PlyCount "70"]
[EventDate "2024.02.14"]
[EventType "tourn"]
[EventCountry "USA"]
[SourceTitle "playchess.com"]
[Source "ChessBase"]
[SourceQuality "1"]
[TimeControl "5400+30"]

{[%evp 13,70,16,20,14,9,12,37,29,22,37,30,25,26,34,27,36,13,31,35,20,41,37,48,45,72,39,51,15,16,16,18,0,0,-8,0,0,0,0,0,-12,-8,-60,-29,-803,-746,-816,-823,-965,-975,-1201,-1173,-1320,-1293,-1494,-1279,-29997,-29998,-29998,-29999]} 1. c4 {[%emt 0:00:04]} e5 {[%emt 0:00:08]} 2. Nc3 {[%emt 0:00:12]} Nc6 {[%emt 0:00:19]} 3. Nf3 {[%emt 0:00:41]} Nf6 {[%emt 0:00:39]} 4. g3 {[%emt 0:00:19]} Bc5 {[%emt 0:02:44]} 5. Bg2 {[%emt 0:00:58]} d6 {[%emt 0:00:06]} 6. O-O {[%emt 0:00:30]} a6 {[%emt 0:00:14]} 7. e3 {[%emt 0:03:08]} O-O {[%emt 0:00:51]} 8. b3 {[%emt 0:12:15]} Ba7 {[%emt 0:03:59]} 9. Bb2 {[%emt 0:15:47]} Bg4 {[%emt 0:05:26] [#] Weiss muss nun ...e4 beachten.} 10. h3 {[%emt 0:01:00] Weiß steht etwas besser.} Bd7 {[%emt 0:00:02]} 11. d4 {[%emt 0:02:36]} exd4 {[%emt 0:00:35]} 12. exd4 {[%emt 0:00:47]} Re8 {[%emt 0:01:16]} 13. Qd2 {[%emt 0:06:09]} Rb8 {[%emt 0:09:21]} 14. Rfe1 {[%emt 0:09:43]} b5 {[%emt 0:00:34]} 15. Rxe8+ {[%emt 0:00:46]} Bxe8 {[%emt 0:00:10]} 16. Re1 {[%emt 0:11:01]} bxc4 {[%emt 0:01:31]} 17. bxc4 {[%emt 0:00:06]} Na5 {[%emt 0:33:55]} 18. Bf1 {[%emt 0:01:08]} Bd7 {[%emt 0:00:39]} 19. Nd1 {[%emt 0:06:21]} Nc6 {[%emt 0:01:32]} 20. d5 {[%emt 0:02:03]} Ne7 {[%emt 0:00:20][%cal Bc6e7,Be7g6,Bg6e5][%mdl 32]} 21. Bxf6 {[%emt 0:00:57]} gxf6 {[%emt 0:36:39]} 22. Nc3 {[%emt 0:07:59][%cal Oc4c5]} (22. Qh6 {sieht schärfer aus.} Ng6 23. Bd3 Qf8 24. Qh5) 22... Ng6 {[%emt 0:00:00]} 23. Ne2 {[%emt 0:01:17]} Bc5 {[%emt 0:00:00]} 24. Qc1 {[%emt 0:00:39]} Ne5 {[%emt 0:00:00]} 25. Ned4 {[%emt 0:00:12]} Qf8 {[%emt 0:00:00]} 26. Re4 {[%emt 0:06:52]} Qg7 $36 {[%emt 0:00:00][%mdl 2048] Schwarz hat Initiative.} 27. Kg2 {[%emt 0:00:08]} (27. Nh4 $11) 27... f5 {[%emt 0:00:00]} 28. Rh4 {[%emt 0:08:16][%mdl 8192] Der Zug kostet die Partie für Weiß.} (28. Re2 $11) 28... Nxf3 $19 {[%emt 0:00:00]} ({Weniger gut wäre} 28... Ng6 29. Nb3 $19) 29. Nxf3 {[%emt 0:00:08]} Rb2 {[%emt 0:00:00]} 30. Nd2 {[%emt 0:01:14]} Rxa2 {[%emt 0:00:00] Und jetzt ...Qb2 wäre schön.} 31. Rf4 {[%emt 0:00:53]} Qb2 {[%emt 0:00:00]} 32. Qe1 {[%emt 0:00:25]} Qxd2 {[%emt 0:00:00]} 33. Qe7 {[%emt 0:00:05]} Qe3 {[%emt 0:00:00]} 34. Qxd7 {[%emt 0:00:34]} Rxf2+ {[%emt 0:00:00]} 35. Kh1 {[%emt 0:00:02] [#]} Rh2+ $3 {[%emt 0:00:00][%mdl 512] Gewichteter Fehlerwert: Weiß=0.77/Schwarz=0.17 (sehr präzise) .  Verlustzug:     	Weiß=1     	---        Fehler:       	Weiß=1     	---        Ungenau:       	Weiß=2     	Schwarz=2     OK:         	Weiß=9     	Schwarz=11    Bester:       	---       	Schwarz=1} 0-1

[Event "NY Presidents Day GM-A 2024"]
[Site "New York"]
[Date "2024.02.18"]
[Round "6.1"]
[White "Lu, Maximillian"]
[Black "Mandizha, Farai"]
[Result "0-1"]
[ECO "D79"]
[WhiteElo "2371"]
[BlackElo "2367"]
[Annotator "TA"]
[PlyCount "62"]
[EventDate "2024.02.14"]
[EventType "tourn"]
[EventCountry "USA"]
[SourceTitle "playchess.com"]
[Source "ChessBase"]
[SourceQuality "1"]
[TimeControl "5400+30"]

{[%evp 19,62,-12,12,5,37,22,24,25,39,6,26,-18,-28,-12,-19,-42,-38,-112,-129,-110,-126,-115,-116,-125,-24,-40,-49,-135,-115,-378,-378,-390,-384,-540,-387,-612,-596,-981,-953,-2022,-2004,-1642,-1051,-29997,-610]} 1. Nf3 {[%emt 0:00:02]} Nf6 {[%emt 0:14:54]} 2. c4 {[%emt 0:00:02]} g6 {[%emt 0:00:11]} 3. Nc3 {[%emt 0:00:05]} Bg7 {[%emt 0:00:59]} 4. g3 {[%emt 0:00:02]} c6 {[%emt 0:01:05]} 5. Bg2 {[%emt 0:04:40]} d5 {[%emt 0:00:03]} 6. cxd5 {[%emt 0:00:17]} cxd5 {[%emt 0:00:06]} 7. d4 {[%emt 0:00:02]} Ne4 {[%emt 0:02:43]} 8. Bf4 {[%emt 0:02:46]} Nc6 {[%emt 0:02:56]} 9. O-O {[%emt 0:00:17]} O-O {[%emt 0:01:19]} 10. Rc1 {[%emt 0:05:16]} Bf5 {[%emt 0:07:40]} 11. Ne5 {[%emt 0:06:19]} Nxe5 {[%emt 0:02:37]} 12. Bxe5 {[%emt 0:03:03]} Bh6 {[%emt 0:00:49]} 13. e3 {[%emt 0:01:55] Weiß hat minimalen Vorteil.} Rc8 {[%emt 0:07:23]} 14. Nxe4 {[%emt 0:24:28]} dxe4 {[%emt 0:02:19]} 15. g4 {[%emt 0:11:34]} Rxc1 {[%emt 0:00:57]} 16. Qxc1 {[%emt 0:00:01]} Bxg4 {[%emt 0:00:17]} 17. Bxe4 {[%emt 0:00:02]} Bh3 {[%emt 0:00:36]} 18. Bxb7 {[%emt 0:09:51]} (18. Re1 $15) 18... Bxf1 $17 {[%emt 0:01:20]} 19. Qxf1 {[%emt 0:00:34]} Qb6 {[%emt 0:02:09] Wehrt Qb5 ab} 20. Qa6 {[%emt 0:00:36]} Qxb2 {[%emt 0:06:40]} 21. Qxa7 {[%emt 0:01:40]} Qb1+ {[%emt 0:07:52]} (21... Bg7 $17 22. Bg3 Bf6) 22. Kg2 $15 {[%emt 0:00:01]} Qc2 $36 {[%emt 0:00:56][%mdl 2048] Schwarz steht aktiver.} 23. Kg3 {[%emt 0:09:00]} (23. Kf1 $15) 23... Bg7 {[%emt 0:07:58]} 24. Bf4 {[%emt 0:05:28][%mdl 8192] [#] Danach ist Weiß chancenlos.} (24. Bxg7 $17 Kxg7 25. Bf3) 24... g5 $1 $19 {[%emt 0:09:10][%mdl 512]} 25. Bxg5 {[%emt 0:09:26][%cal Og5f4]} Qg6 {[%emt 0:01:00]} 26. Kh4 {[%emt 0:00:15]} (26. h4 $142 h6 27. f4) 26... Kh8 {[%emt 0:03:35]} 27. Qc5 {[%emt 0:05:38]} (27. Qa6 $142 Bf6 28. f4 (28. Bxf6+ $2 exf6 29. Qb5 Rg8 $19)) 27... Rg8 {[%emt 0:01:06] Zielt auf ...Bf6 ab.} 28. Kh3 {[%emt 0:00:38]} Bh6 {[%emt 0:02:02] [#] ...Qh5+ ist eine echte Drohung.} 29. f4 {[%emt 0:00:30]} Qh5+ {[%emt 0:01:25]} 30. Kg3 {[%emt 0:00:30]} Bxg5 {[%emt 0:00:19]} 31. Bf3 {[%emt 0:00:08]} Bh4+ {[%emt 0:00:28] Gewichteter Fehlerwert: Weiß=1.50/Schwarz=0.20 (präzise) .  Verlustzug:     	Weiß=1     	---        Fehler:       	Weiß=4     	Schwarz=1     Ungenau:       	Weiß=4     	Schwarz=1     OK:         	Weiß=4     	Schwarz=4     Bester:       	---       	Schwarz=5     Brilliant:      	---       	Schwarz=1} 0-1

[Event "NY Presidents Day GM-A 2024"]
[Site "New York"]
[Date "2024.02.18"]
[Round "6.2"]
[White "Lenderman, Aleksandr"]
[Black "Kaliksteyn, Alexander"]
[Result "1-0"]
[ECO "A13"]
[WhiteElo "2521"]
[BlackElo "2363"]
[Annotator "TA"]
[PlyCount "87"]
[EventDate "2024.02.14"]
[EventType "tourn"]
[EventCountry "USA"]
[SourceTitle "playchess.com"]
[Source "ChessBase"]
[SourceQuality "1"]
[TimeControl "5400+30"]

{[%evp 14,87,15,9,29,8,12,20,21,3,15,19,14,17,18,18,25,22,30,25,30,34,52,22,29,14,21,20,14,8,17,0,1,14,8,0,0,0,0,0,10,10,4,4,126,127,149,149,149,96,93,94,117,117,198,177,182,129,288,208,365,187,210,196,402,398,520,518,489,454,789,782,777,756,735,726]} 1. c4 {[%emt 0:00:03]} e6 {[%emt 0:00:11]} 2. g3 {[%emt 0:00:05]} d5 {[%emt 0:00:09]} 3. Bg2 {[%emt 0:00:03]} Nf6 {[%emt 0:00:27]} 4. Nf3 {[%emt 0:00:07]} d4 {[%emt 0:05:15]} 5. O-O {[%emt 0:00:39]} c5 {[%emt 0:00:20]} 6. e3 {[%emt 0:00:16]} Nc6 {[%emt 0:00:04]} 7. exd4 {[%emt 0:00:11]} cxd4 {[%emt 0:00:05]} 8. d3 {[%emt 0:00:05]} Bd6 {[%emt 0:00:51]} 9. Bg5 {[%emt 0:00:15]} h6 {[%emt 0:00:20]} 10. Bxf6 {[%emt 0:00:10]} Qxf6 {[%emt 0:00:06] The position is equal.} 11. Nbd2 {[%emt 0:00:06]} Qd8 {[%emt 0:01:25]} 12. a3 {[%emt 0:04:29]} a5 {[%emt 0:00:18]} 13. Rc1 {[%emt 0:00:08]} O-O {[%emt 0:01:43]} 14. c5 {[%emt 0:00:36]} Bc7 {[%emt 0:05:32]} 15. Re1 {[%emt 0:02:08]} Re8 {[%emt 0:01:09]} 16. Nc4 {[%emt 0:04:26]} Qe7 {[%emt 0:16:26][%cal Oc8d7]} 17. Nfd2 {[%emt 0:01:16]} Bd7 {[%emt 0:09:22]} 18. Ne4 {[%emt 0:02:57]} Reb8 {[%emt 0:06:18]} 19. Ned6 {[%emt 0:05:44]} Ra6 {[%emt 0:03:35]} 20. a4 {[%emt 0:15:40]} Bxd6 {[%emt 0:12:55]} 21. cxd6 {[%emt 0:02:14]} Qd8 {[%emt 0:05:51]} 22. Qh5 {[%emt 0:03:25]} Qg5 {[%emt 0:04:31]} 23. Qxg5 {[%emt 0:03:23]} hxg5 {[%emt 0:00:03]} 24. Bxc6 {[%emt 0:00:09]} Bxc6 {[%emt 0:02:01]} 25. Re5 {[%emt 0:00:56][%csl LRa5,LRg5]} Bd5 {[%emt 0:16:43]} 26. Rxg5 {[%emt 0:03:06]} Rc6 {[%emt 0:02:35]} 27. b3 {[%emt 0:05:22][%cal Bb2b3,Bb3c4][%mdl 32]} Rd8 {[%emt 0:00:34]} 28. Re1 {[%emt 0:04:14]} b6 {[%emt 0:00:47] [#]} (28... f6 $11 29. Rg4 e5) 29. Rg4 $1 $16 {[%emt 0:02:43] White is more active.} Bxc4 {[%emt 0:00:43]} 30. bxc4 {[%emt 0:00:04]} Rdxd6 {[%emt 0:00:30][%mdl 4096] Endgame. KRR-KRR} 31. Rg5 {[%emt 0:01:55]} ({White should play} 31. Rge4) 31... f6 {[%emt 0:00:36]} 32. Rb5 {[%emt 0:00:25]} Kf7 {[%emt 0:00:12]} 33. f4 {[%emt 0:00:16]} f5 {[%emt 0:03:14]} (33... Rc5 $16) 34. Kg2 {[%emt 0:00:35]} Kf6 {[%emt 0:00:07]} 35. Kf3 {[%emt 0:01:08]} (35. h4 $18) 35... g5 $2 {[%emt 0:00:35] Black cannot hold the game after this.} (35... Rc5 $16 36. h3 Rxb5 37. cxb5 Rd8) 36. g4 {[%emt 0:02:47][%cal Bg3g4,Bg4f5][%mdl 32]} Rc5 $2 {[%emt 0:01:40]} (36... fxg4+ {might work better.} 37. Kxg4 gxf4 38. Kxf4 Rd8) 37. Re5 {[%emt 0:00:55]} (37. fxg5+ $142 Kxg5 38. h4+ Kg6 (38... Kxh4 $2 39. Rxc5 bxc5 40. Kf4 $18) 39. g5) 37... Rxb5 {[%emt 0:00:59]} 38. Rxb5 {[%emt 0:00:15]} gxf4 $2 {[%emt 0:00:37]} (38... fxg4+ 39. Kxg4 gxf4) 39. gxf5 $18 {[%emt 0:01:27] KR-KR} (39. Kxf4 fxg4 40. Rh5 (40. Kxg4 e5 $14) 40... Rd8 $16) 39... e5 {[%emt 0:00:06]} 40. Ke4 {[%emt 0:00:08] White is clearly winning.} f3 {[%emt 0:00:11]} 41. Rb2 {[%emt 0:00:11][%cal Oh2h4] [#] aiming for h4!} (41. Kxf3 Kxf5 42. Rb1 Rh6 $11) 41... Rc6 {[%emt 0:00:42]} (41... Kf7 $142 42. Kxe5 Rh6) 42. h4 {[%emt 0:01:45][%cal Bh2h4,Bh4h5][%mdl 32]} (42. Kxf3 Kxf5 43. h4 e4+ 44. dxe4+ Kf6 $14) 42... Rd6 {[%emt 0:00:05]} 43. h5 {[%emt 0:01:25]} ({Less strong is} 43. Kxf3 Kxf5 44. Rh2 Rh6 $18) 43... Kg5 {[%emt 0:00:42]} 44. Rf2 {[%emt 0:00:13] Weighted Error Value: White=0.14 (very precise) /Black=0.35.  Mistake:       	White=3     	Black=6      Inaccurate:     	White=1     	Black=1      OK:         	White=12    	Black=10     Best:        	White=2     	---        Strong:       	White=1     	---} ({Inferior is} 44. Kxe5 Rf6 45. h6 (45. Kxd4 Kf4 $17) 45... Rxh6 $11) 1-0

[Event "NY Presidents Day GM-A 2024"]
[Site "New York"]
[Date "2024.02.18"]
[Round "6.3"]
[White "Eidelman, Gabriel"]
[Black "Rorrer, Grayson"]
[Result "1-0"]
[ECO "A07"]
[WhiteElo "2343"]
[BlackElo "2396"]
[Annotator "TA"]
[PlyCount "61"]
[EventDate "2024.02.14"]
[EventType "tourn"]
[EventCountry "USA"]
[SourceTitle "playchess.com"]
[Source "ChessBase"]
[SourceQuality "1"]
[TimeControl "5400+30"]

{[%evp 9,61,19,12,17,11,13,12,7,28,0,0,0,0,0,66,52,45,45,115,96,158,181,174,172,165,129,201,192,190,201,197,207,200,170,179,135,131,92,206,191,239,231,246,247,360,370,352,365,1866,2204,1444,1316,1781,1487]} 1. Nf3 {[%emt 0:00:03]} Nf6 {[%emt 0:00:07]} 2. g3 {[%emt 0:00:06]} d5 {[%emt 0:00:07]} 3. Bg2 {[%emt 0:00:07]} c6 {[%emt 0:00:05]} 4. O-O {[%emt 0:00:09]} Bg4 {[%emt 0:00:05]} 5. h3 {[%emt 0:00:07]} Bh5 {[%emt 0:00:06] [#]} 6. c4 $1 {[%emt 0:00:07]} e6 {[%emt 0:00:13]} 7. d4 {[%emt 0:00:18]} Nbd7 {[%emt 0:00:51]} 8. cxd5 {[%emt 0:00:15] The position is equal.} exd5 {[%emt 0:00:07]} 9. Ne5 {[%emt 0:00:20]} Ne4 {[%emt 0:00:21]} 10. Nd2 {[%emt 0:00:19]} f5 {[%emt 0:01:48]} 11. Nxe4 {[%emt 0:00:09]} dxe4 {[%emt 0:03:02]} ({Black should play} 11... fxe4 $11 12. g4 Nxe5 13. gxh5 Nf7) 12. Qb3 {[%emt 0:07:36] Hoping for Qe6+.} Nxe5 {[%emt 0:02:11]} 13. dxe5 {[%emt 0:00:08]} Qc8 {[%emt 0:01:47] [#]} ({Black should try} 13... Bxe2 $14 14. Re1 Bd3) 14. e6 $1 $16 {[%emt 0:13:41]} Bxe2 {[%emt 0:15:21]} (14... a5 $142) 15. Re1 {[%emt 0:00:07]} Bd3 {[%emt 0:00:02]} 16. Bf4 {[%emt 0:15:37]} Be7 {[%emt 0:03:51]} 17. Bf1 {[%emt 0:04:29]} O-O {[%emt 0:02:52]} (17... Bxf1 $16 {keeps fighting.} 18. Rxf1 Qd8) 18. Bxd3 $18 {[%emt 0:01:56]} exd3 {[%emt 0:00:08]} 19. Rad1 {[%emt 0:00:59]} c5 {[%emt 0:01:09]} 20. Qxd3 {[%emt 0:01:26]} (20. Rxd3 $2 {is the wrong capture.} c4 21. Qd1 cxd3 $19) 20... Qc6 {[%emt 0:01:08]} 21. Qd7 {[%emt 0:05:43]} Rfe8 {[%emt 0:06:41]} 22. Qxc6 {[%emt 0:10:03]} bxc6 {[%emt 0:01:39]} 23. Be5 {[%emt 0:05:42] White is much more active.} Rad8 {[%emt 0:02:55]} (23... Red8 $16) 24. Rd7 {[%emt 0:00:59]} Bf8 {[%emt 0:01:12]} (24... a5 $142 25. b3 g6) 25. Bc3 {[%emt 0:05:01]} (25. Rxa7 Rxe6 26. Kf1 g5 $16) 25... Be7 {[%emt 0:03:43]} 26. Rxa7 {[%emt 0:00:17]} Bf6 {[%emt 0:00:19]} (26... Ra8 $142 27. Rb7 h5) 27. Bxf6 {[%emt 0:00:38]} gxf6 {[%emt 0:00:03]} 28. Re2 {[%emt 0:03:01] Repels Rd2} Ra8 $2 {[%emt 0:01:57]} (28... Rd6 29. e7 Kf7) 29. Rxa8 {[%emt 0:05:57] White is clearly winning.} Rxa8 {[%emt 0:00:08]} 30. e7 {[%emt 0:01:13]} Re8 {[%emt 0:00:05]} 31. Kg2 {[%emt 0:01:13] Weighted Error Value: White=0.10 (very precise) /Black=0.32.  Mistake:       	---       	Black=8      Inaccurate:     	White=1     	---        OK:         	White=10    	Black=9      Best:        	White=4     	---        Strong:       	White=1     	---} 1-0

[Event "NY Presidents Day GM-A 2024"]
[Site "New York"]
[Date "2024.02.18"]
[Round "6.4"]
[White "Paragua, Mark"]
[Black "Yu, Jiangwei"]
[Result "1-0"]
[ECO "D41"]
[WhiteElo "2448"]
[BlackElo "2357"]
[Annotator "TA"]
[PlyCount "99"]
[EventDate "2024.02.14"]
[EventType "tourn"]
[EventCountry "USA"]
[SourceTitle "playchess.com"]
[Source "ChessBase"]
[SourceQuality "1"]
[TimeControl "5400+30"]

{[%evp 18,99,0,0,30,-24,29,29,38,34,33,32,48,49,116,62,42,52,78,28,27,21,76,55,45,74,77,70,154,63,68,8,16,15,20,23,20,17,25,15,35,41,44,26,24,25,58,58,58,17,17,17,19,17,21,21,20,20,45,45,45,52,52,52,52,52,52,58,512,504,1500,1403,1810,1705,29971,29972,29972,29973,29972,29974,29973,29974,7048,6535]} 1. c4 {[%emt 0:09:04]} c6 {[%emt 0:00:06]} 2. e4 {[%emt 0:00:42]} d5 {[%emt 0:00:06]} 3. exd5 {[%emt 0:00:04]} cxd5 {[%emt 0:00:03]} 4. cxd5 {[%emt 0:00:06]} Nf6 {[%emt 0:00:08]} 5. Nc3 {[%emt 0:00:07]} Nxd5 {[%emt 0:00:14]} 6. Nf3 {[%emt 0:00:16]} Nc6 {[%emt 0:00:19]} 7. Bc4 {[%emt 0:00:41]} e6 {[%emt 0:01:40]} 8. O-O {[%emt 0:00:10]} Be7 {[%emt 0:01:06]} 9. d4 {[%emt 0:00:21]} O-O {[%emt 0:02:16]} 10. Re1 {[%emt 0:00:20]} b6 {[%emt 0:12:14]} 11. a3 {[%emt 0:04:05]} (11. Nxd5 $142 exd5 12. Bb5) 11... Nf6 {[%emt 0:01:25]} (11... Nxc3 $142 12. bxc3 Bb7) 12. d5 $11 {[%emt 0:08:05]} exd5 {[%emt 0:08:59] White has an edge.} 13. Nxd5 {[%emt 0:00:21]} Nxd5 {[%emt 0:02:49]} 14. Qxd5 {[%emt 0:00:10]} Bb7 {[%emt 0:03:03]} 15. Qh5 {[%emt 0:00:14] [#] Bg5 would now be deadly.} Na5 {[%emt 0:03:23]} (15... Qd6 $14) 16. Ba2 {[%emt 0:06:10] White has more active pieces.} (16. Ng5 $16 Bxg5 17. Bxg5) 16... Bxf3 $1 $14 {[%emt 0:04:37]} 17. Qxf3 {[%emt 0:01:47]} Bf6 {[%emt 0:00:19]} 18. Rb1 {[%emt 1:06:47]} (18. Bf4 $16 {Rad1 is the strong threat.} Bxb2 19. Rad1) 18... Rc8 $11 {[%emt 0:02:28]} 19. Bf4 {[%emt 0:00:00]} Bd4 {[%emt 0:03:44]} (19... Re8 $11) 20. Rbd1 {[%emt 0:00:00] Hoping for Re4.} (20. Re4 {simplifies} Qf6 21. Qe2 h6 22. Bxh6 Bxf2+ 23. Qxf2 Qxf2+ 24. Kxf2 gxh6 25. Kg1) 20... Qf6 {[%emt 0:03:01] Black is weak on the light squares} 21. b4 {[%emt 0:00:00]} Nc6 {[%emt 0:12:46]} 22. Qe4 {[%emt 0:00:00] Strongly threatening b5.} Rfd8 {[%emt 0:07:11] [#]} ({Black should try} 22... Rcd8 $14) 23. Rd3 {[%emt 0:00:00]} (23. h4 $1 $16) 23... Qg6 $1 $14 {[%emt 0:01:33]} 24. b5 {[%emt 0:00:00]} (24. Qxg6 $14 hxg6 25. b5) 24... Qxe4 $11 {[%emt 0:04:17]} 25. Rxe4 {[%emt 0:00:00]} Bc5 {[%emt 0:04:45]} (25... Bxf2+ $2 26. Kxf2 Rxd3 27. bxc6 $18) 26. Rxd8+ {[%emt 0:00:00]} Rxd8 {[%emt 0:00:02]} 27. Kf1 {[%emt 0:00:00]} (27. bxc6 $2 Rd1+) 27... Nd4 {[%emt 0:00:50]} 28. Bg5 {[%emt 0:00:00]} Rf8 {[%emt 0:01:13]} 29. a4 {[%emt 0:00:00]} Ne6 {[%emt 0:05:56]} 30. Be3 {[%emt 0:00:00]} Bxe3 {[%emt 0:01:59]} 31. Rxe3 {[%emt 0:00:00]} Rd8 {[%emt 0:00:23]} 32. Bxe6 {[%emt 0:00:00]} fxe6 $14 {[%emt 0:00:05][%mdl 4096] Endgame. KR-KR} 33. Rc3 {[%emt 0:00:00]} Rd7 {[%emt 0:00:30] Prevents Rc7.} 34. Ke2 {[%emt 0:00:00]} Kf7 {[%emt 0:00:25]} 35. Ke3 {[%emt 0:00:00]} Kf6 {[%emt 0:01:52]} 36. h4 {[%emt 0:00:42]} h5 {[%emt 0:02:04]} 37. Rc8 {[%emt 0:00:49]} Ke5 {[%emt 0:03:54]} 38. g3 {[%emt 0:01:36]} Kf6 {[%emt 0:02:05]} 39. f3 {[%emt 0:00:16][%cal Bf2f3,Bf3g4,Bg4g5][%mdl 32]} g6 {[%emt 0:00:54]} 40. Ke4 {[%emt 0:00:12]} Rb7 {[%emt 0:00:42]} 41. g4 {[%emt 0:00:48]} hxg4 {[%emt 0:00:59]} 42. fxg4 {[%emt 0:00:05] aiming for g5+.} a6 $2 {[%emt 0:01:41][%mdl 8192] This move loses the game for Black.} 43. g5+ $18 {[%emt 0:00:17]} Kg7 {[%emt 0:00:12]} (43... Kf7 $142 44. Rh8 (44. bxa6 Ra7 $18) 44... Kg7) 44. Ke5 {[%emt 0:00:34]} ({Weaker is} 44. bxa6 Ra7 $18) 44... axb5 {[%emt 0:00:13]} 45. axb5 {[%emt 0:00:06]} ({Inferior is} 45. Kxe6 bxa4 46. Ra8 b5 $17) 45... Rf7 {[%emt 0:01:49]} 46. Kxe6 {[%emt 0:00:25]} Rf4 {[%emt 0:02:33]} 47. Rc7+ {[%emt 0:00:10]} Kg8 {[%emt 0:00:32]} 48. Rb7 {[%emt 0:00:08]} Rxh4 {[%emt 0:00:13]} 49. Kf6 {[%emt 0:00:19]} Rb4 {[%emt 0:00:48]} 50. Kxg6 {[%emt 0:00:10] Weighted Error Value: White=0.19 (very precise) /Black=0.43.  Loses game:     	---       	Black=1      Mistake:       	White=5     	Black=5      Inaccurate:     	White=1     	Black=1      OK:         	White=11    	Black=11     Best:        	White=3     	Black=3      Strong:       	---       	Black=2} 1-0

[Event "NY Presidents Day GM-A 2024"]
[Site "New York"]
[Date "2024.02.18"]
[Round "6.5"]
[White "Griffith, Kyron"]
[Black "Novik, Maxim"]
[Result "1/2-1/2"]
[ECO "B18"]
[WhiteElo "2367"]
[BlackElo "2399"]
[Annotator "TA"]
[PlyCount "36"]
[EventDate "2024.02.14"]
[EventType "tourn"]
[EventCountry "USA"]
[SourceTitle "playchess.com"]
[Source "ChessBase"]
[SourceQuality "1"]
[TimeControl "5400+30"]

{[%evp 10,36,22,7,6,0,13,4,16,0,15,10,22,24,15,0,0,0,11,0,0,-37,-47,-44,-45,-42,-36,-69,0]} 1. e4 {[%emt 0:00:04]} c6 {[%emt 0:00:04]} 2. d4 {[%emt 0:00:05]} d5 {[%emt 0:00:05]} 3. Nc3 {[%emt 0:00:05][%cal Bb1c3,Bc3e4,Be4g3][%mdl 32]} dxe4 {[%emt 0:00:06]} 4. Nxe4 {[%emt 0:00:05]} Bf5 {[%emt 0:00:02]} 5. Ng3 {[%emt 0:00:07]} Bg6 {[%emt 0:00:04]} 6. Nh3 {[%emt 0:00:10]} Nf6 {[%emt 0:00:39][%cal Oc6c5]} 7. c3 {[%emt 0:00:16]} Nbd7 {[%emt 0:07:48][%cal Bb8d7,Bd7b6,Bb6d5][%mdl 32]} 8. Bc4 {[%emt 0:00:23]} e6 {[%emt 0:03:11] The position is equal.} 9. Nf4 {[%emt 0:00:14]} Nb6 {[%emt 0:01:02]} 10. Bb3 {[%emt 0:00:52]} Nbd5 {[%emt 0:00:30]} 11. Nxg6 {[%emt 0:01:55]} hxg6 {[%emt 0:01:00]} 12. O-O {[%emt 0:05:45]} Bd6 {[%emt 0:08:52]} 13. Bg5 {[%emt 0:12:26]} Bf4 {[%emt 0:05:42]} 14. Bxd5 {[%emt 0:08:00]} Bxg5 {[%emt 0:00:11]} 15. Bb3 {[%emt 0:01:00]} Qc7 {[%emt 0:01:20] Black is slightly better.} 16. Qf3 {[%emt 0:03:19]} O-O-O {[%emt 0:00:57]} 17. h3 {[%emt 0:04:12]} Bf4 {[%emt 0:07:23]} 18. Rfe1 {[%emt 0:03:38]} Bd6 {[%emt 0:24:22] Weighted Error Value: White=0.09 (flawless) /Black=0.04 (flawless) .  Mistake:       	---       	Black=1      Inaccurate:     	White=2     	---        OK:         	White=6     	Black=4      Best:        	---       	Black=3} (18... g5 $15) 1/2-1/2